Cogmind - Beta 17.1 @@@ ROGUE MODE // 2026.09.19 @ 23:51:25 Player: Caluan Result: Destroyed by S-43 Plague with Heavy Machine Gun Performance ------------- Evolutions (9) 4500 Regions Visited (27) 5400 Robots Destroyed (337) 1685 Value Destroyed (18320) 18320 Prototype IDs (31) 620 Alien Tech Used (0) 0 Bonus (9701) 9701 TOTAL SCORE: 40226 Bonus ------- High Alert Combat Kills 1491 Follower Combat Kills 3780 Awakened Behemoth Slayer 1000 Entered Garrisons 1000 Used RIF Installer 2500 Friendly Fire -70 Cogmind --------- Core Integrity 0/1600 Matter 147/300 Energy 100/100 System Corruption 2% Temperature Cool (0) Movement Core (50) Location -1/Access Parts ------- > --- POWER (2) -------- (None) > --- PROPULSION (4) --- (None) > --- UTILITY (15) ----- (None) > --- WEAPON (4) ------- (None) > --- INVENTORY (5) ---- Combat Linear Gravjet Advanced Remote Datajack Plasma Cutter Force Lance CR-A16's Behemoth Slayer Peak State ------------ > --- POWER ------------ Reinforced Fission Core Light Antimatter Reactor > --- PROPULSION ------- Improved Treads Improved Treads Heavy Treads > --- UTILITY ---------- Advanced Heat Sink SHELL Armor Experimental Hardlight Generator Relay Coupler [NC] Relay Coupler [Swarmer] Relay Coupler [Grunt] Relay Coupler [Brawler] Relay Coupler [Sentry] Relay Coupler [Specialist] > --- WEAPON ----------- Coil Gun Perforator Advanced Remote Datajack > --- INVENTORY -------- Missile Launcher Plasma Cutter Force Lance CR-A16's Behemoth Slayer [Rating: 134] Favorites ----------- Power Light Antimatter Reactor Engine Heavy Ion Engine Power Core Micro Fission Core Reactor Light Antimatter Reactor Propulsion Light Treads Treads Light Treads Leg Aluminum Leg Wheel Compact Wheel Hover Unit Antigrav System Flight Unit Impulse Thruster Array Utility High-capacity Storage Unit Device Advanced Heat Sink Storage High-capacity Storage Unit Processor System Guard Hackware Relay Coupler [Sentry] Protection Heavy Regenerative Plating Weapon Improved Assault Rifle Energy Gun EM Pulse Gun Ballistic Gun Improved Assault Rifle Ballistic Cannon Hypervelocity Gauss Cannon Launcher Heavy Rocket Launcher Special Weapon Improved Remote Datajack Impact Weapon Hammer Piercing Weapon Force Lance Special Melee Weapon Improved Datajack Build | -11 -10 -10 -9 -9 -8 -8 -8 -7 -7 -7 -7 -7 -7 -6 -6 -6 -6 -6 -5 -4 -4 -4 -4 -3 -3 -2 -1 ------- Run | Yrd Mat Min Mat Min Mat Gar Mat Fac Was Fac Low Low Zio Pro Fac Gar Fac Gar Fac Fac Gar Fac Gar Res Tes Res Acc Slots Evolved 18 | . . . 2 . 2 . . 2 . . . . . . 2 . . . 2 2 . . . 2 . 2 2 Power 1 | . . . . . . . . . . . . . . . . . . . . 1 . . . . . . . Propulsion 2 | . . . . . 1 . . . . . . . . . 1 . . . . . . . . . . . . Utility 13 | . . . 1 . 1 . . 2 . . . . . . 1 . . . 1 1 . . . 2 . 2 2 Weapon 2 | . . . 1 . . . . . . . . . . . . . . . 1 . . . . . . . . Parts Attached 257 | 7 4 1 24 . 22 19 10 18 1 6 1 2 . 3 6 14 7 9 18 1 18 . 31 . 21 . 14 Power 26 | 2 1 . 3 . 1 1 1 1 . . . . . 1 . 1 1 1 1 1 2 . 5 . 1 . 2 Engine 10 | 2 1 . 2 . 1 1 1 . . . . . . . . 1 1 . . . . . . . . . . Core 11 | . . . 1 . . . . 1 . . . . . 1 . . . 1 1 1 1 . 4 . . . . Reactor 5 | . . . . . . . . . . . . . . . . . . . . . 1 . 1 . 1 . 2 Propulsion 63 | 2 . . 9 . 7 7 . 6 . 1 1 . . . 1 2 . 2 5 . 1 . 9 . 2 . 8 Treads 45 | 2 . . 4 . 6 7 . 6 . 1 1 . . . 1 2 . 2 5 . 1 . 3 . 2 . 2 Leg 2 | . . . 2 . . . . . . . . . . . . . . . . . . . . . . . . Wheel 4 | . . . 3 . 1 . . . . . . . . . . . . . . . . . . . . . . Hover 8 | . . . . . . . . . . . . . . . . . . . . . . . 6 . . . 2 Flight 4 | . . . . . . . . . . . . . . . . . . . . . . . . . . . 4 Utility 90 | 1 2 . 1 . 6 2 7 4 1 3 . 1 . 1 3 7 4 3 6 . 12 . 10 . 14 . 2 Device 11 | . 1 . . . . 2 . . 1 . . . . . 2 . . . 1 . . . 1 . 3 . . Storage 7 | 1 1 . . . 1 . 1 1 . . . . . . . . . . . . . . . . 2 . . Processor 3 | . . . . . 1 . 1 . . . . . . . 1 . . . . . . . . . . . . Hackware 60 | . . . 1 . . . 5 2 . 3 . . . 1 . 7 4 3 5 . 12 . 8 . 7 . 2 Protection 9 | . . . . . 4 . . 1 . . . 1 . . . . . . . . . . 1 . 2 . . Artifact . | . . . . . . . . . . . . . . . . . . . . . . . . . . . . Weapon 78 | 2 1 1 11 . 8 9 2 7 . 2 . 1 . 1 2 4 2 3 6 . 3 . 7 . 4 . 2 Energy Gun 2 | 1 . . 1 . . . . . . . . . . . . . . . . . . . . . . . . Energy Cannon . | . . . . . . . . . . . . . . . . . . . . . . . . . . . . Ballistic Gun 48 | 1 1 1 6 . 5 8 1 5 . 2 . 1 . . 2 3 1 . 2 . 2 . 5 . 2 . . Ballistic Cannon 8 | . . . . . . . . . . . . . . . . . . 3 2 . . . 1 . 1 . 1 Launcher 6 | . . . 2 . 2 . . . . . . . . 1 . . . . . . . . . . . . 1 Special Weapon 8 | . . . 1 . . 1 1 1 . . . . . . . . . . 2 . . . 1 . 1 . . Impact Weapon 1 | . . . 1 . . . . . . . . . . . . . . . . . . . . . . . . Slashing Weapon . | . . . . . . . . . . . . . . . . . . . . . . . . . . . . Piercing Weapon 3 | . . . . . . . . . . . . . . . . 1 1 . . . 1 . . . . . . Special Melee Weapon 2 | . . . . . 1 . . 1 . . . . . . . . . . . . . . . . . . . Unidentified Prototypes 6 | . . . . . 2 . . . . . . . . . 1 . . . . . . . . . 3 . . Corrupted Parts 1 | . . . . . . . . . . . . . . . 1 . . . . . . . . . . . . System Corruption 3 | . . . . . . . . . . . . . . . 3 . . . . . . . . . . . . Parts Lost 102 | . 3 2 9 1 10 12 . 11 . 1 . 1 . 3 3 3 . 6 2 . 10 . 9 . 5 . 11 Power 15 | . 2 . 1 . . 1 . 2 . . . . . 1 . 1 . 1 1 . 1 . 2 . 1 . 1 Propulsion 37 | . . 1 5 . 5 6 . 5 . . . . . . . 1 . 1 1 . 3 . 2 . 1 . 6 Utility 19 | . . . 1 . 3 . . 1 . . . . . 1 1 1 . 1 . . 2 . 3 . 3 . 2 Weapon 31 | . 1 1 2 1 2 5 . 3 . 1 . 1 . 1 2 . . 3 . . 4 . 2 . . . 2 Highest Loss Streak 7 | . 2 2 2 1 3 7 . 7 . 1 . 1 . 1 2 2 . 3 1 . 4 . 3 . 3 . 4 To Critical Strikes 5 | . . . . . . 1 . . . . . . . . . . . . . . 1 . 1 . . . 2 Average Backups 15 | 1 3 6 12 14 16 17 19 17 12 15 15 16 16 16 15 17 17 16 17 17 14 18 18 19 16 5 4 Power . | . . . 1 2 1 . . . . . . . . . . . . . . . . . . . . . . Propulsion 1 | . . . 3 4 3 . 3 2 1 5 4 4 4 4 3 2 1 . . 1 . . . . . . . Utility 5 | . . 1 1 1 2 7 8 6 4 3 4 4 4 4 4 5 6 6 4 3 5 11 11 13 8 . . Weapon 5 | . 2 5 5 6 7 6 4 5 4 4 4 5 5 5 5 6 6 5 8 11 5 5 4 3 5 3 2 Tool/Special . | . . . . . . . . . . . . . . . . . . . . . . . . . . . . Unused Backups 23 | . . . 3 . 2 1 . . . . . . . . . 1 1 1 . . 2 . 2 . 10 . . Power 1 | . . . . . 1 . . . . . . . . . . . . . . . . . . . . . . Propulsion 3 | . . . 1 . . . . . . . . . . . . . 1 . . . . . . . 1 . . Utility 9 | . . . . . . 1 . . . . . . . . . . . 1 . . 1 . . . 6 . . Weapon 10 | . . . 2 . 1 . . . . . . . . . . 1 . . . . 1 . 2 . 3 . . Tool/Special . | . . . . . . . . . . . . . . . . . . . . . . . . . . . . Average Slot Usage (%) 80 | . 89 88 83 87 76 79 93 74 91 96 87 88 92 82 77 84 86 74 91 84 76 81 83 78 82 . 11 Engine 4 | . 11 14 4 11 9 8 9 5 7 7 7 7 7 3 . 4 6 3 . . . . . . . . . Core 2 | . . . 6 . . . . . . . . . . 2 6 1 . 1 4 10 6 5 6 9 4 . . Treads 16 | . 28 17 7 11 21 26 27 22 23 23 18 15 15 15 12 13 13 15 22 21 10 10 10 14 13 . 1 Wheel 1 | . . . 10 11 3 . . . . . . . . . . . . . . . . . . . . . . Device 3 | . 8 14 9 . . 8 1 . 6 5 . . . . 6 1 . . 4 5 1 . . . 5 . . Storage 7 | . 14 14 11 11 9 9 9 7 7 7 7 7 7 7 6 6 6 6 5 5 5 5 5 4 3 . . Hackware 18 | . . . 1 11 . . 18 14 23 28 30 30 30 24 20 30 37 27 27 21 32 36 31 26 26 . 2 Protection 1 | . . . . . 6 . . 1 . . . 4 7 7 2 . . . . . . . 1 4 3 . . Ballistic Gun 16 | . 12 24 30 32 26 21 19 18 20 19 23 18 15 17 16 16 13 12 . . 11 10 14 14 9 . . Ballistic Cannon 1 | . . . . . . . . . . . . . . . . . . 4 20 15 . . 1 . 1 . . Special Weapon 1 | . . . . . . . 6 . 2 2 . 1 . . . 1 5 . 2 5 2 5 2 1 2 . . Peak Build Rating 134 | 6 7 7 19 19 28 33 36 35 43 49 48 54 51 58 74 82 76 70 88 85 87 79 93 91 134 2 53 Average Rating 52 | 4 6 6 15 18 22 24 32 30 38 45 46 51 51 52 67 74 70 61 81 85 68 76 82 89 112 2 30 On Entrance 43 | . 6 7 6 19 16 17 27 28 32 43 45 48 51 51 57 71 76 69 64 80 85 73 79 91 86 2 2 Avg Prop Armor Cover (%) 11 | . . . 7 10 10 7 . . . . . . . . . . . . . . . . 5 . . . 19 Naked Turns 263 | . . . . . . . . . . . . . . . . . . . . . . . . . 44 201 18 Heaviest Build 136 | 13 30 30 38 36 79 61 61 64 54 54 52 59 57 75 76 67 64 80 91 99 99 78 103 103 136 . 15 Greatest Support 140 | 40 40 40 32 20 60 60 60 72 72 80 98 98 98 98 140 140 140 140 127 111 111 50 116 116 116 3 32 Greatest Overweight (x) 17 | . . 1 10 2 3 3 1 17 . . . . . . . . . . 1 . 16 1 8 . 1 . . Average Overweight (x) . | . . . 1 1 1 . . . . . . . . . . . . . . . . 1 . . . . . Largest Inventory Capacity 20 | 8 15 15 15 15 20 20 20 20 20 20 20 20 20 20 20 20 20 20 20 20 20 20 20 20 20 5 5 Average Capacity 18 | 7 11 15 15 15 19 20 20 20 20 20 20 20 20 20 20 20 20 20 20 20 20 20 20 20 19 5 5 Most Carried 20 | 2 7 7 15 15 20 20 20 20 20 20 20 20 20 20 19 20 20 20 20 18 20 20 20 20 20 5 5 Average Carried 16 | 1 3 6 12 14 16 17 19 17 13 19 19 19 19 19 17 19 18 17 18 18 15 19 19 20 18 5 4 Final Capacity 20 | 8 15 15 15 15 20 20 20 20 20 20 20 20 20 20 20 20 20 20 20 20 20 20 20 20 5 5 5 Final Carried 20 | 2 7 6 14 15 16 20 20 13 20 20 19 19 20 19 19 20 17 20 19 18 20 19 20 20 5 5 5 Class Distribution -------------------- 17% | Bothacker-Gunner 13% | Botlord-Tank 12% | Mutant 11% | Bothacker-Tank 9% | Bothacker-Mutant 7% | Botlord-Gunner 5% | Skirmisher 5% | Scavenger-Tank 5% | Scavenger-Gunner 4% | Scavenger-Mutant Dominant Class ---------------- Mutant | -10/Materials Mutant | -10/Mines Skirmisher | -9/Materials Scavenger-Gunner | -9/Mines Scavenger-Tank | -8/Materials Scavenger-Mutant | -8/Garrison Bothacker-Gunner | -8/Materials Bothacker-Gunner | -7/Factory Bothacker-Gunner | -7/Waste Bothacker-Gunner | -7/Factory Bothacker-Tank | -7/Lower Caves Commander-Tank | -7/Lower Caves Bothacker-Mutant | -7/Zion Scavenger-Tank | -6/Proximity Caves Scavenger-Tank | -6/Factory Bothacker-Tank | -6/Garrison Bothacker-Tank | -6/Factory Bothacker-Tank | -6/Garrison Bothacker-Gunner | -5/Factory Bothacker-Gunner | -4/Factory Botlord-Gunner | -4/Garrison Botlord-Gunner | -4/Factory Botlord-Tank | -4/Garrison Botlord-Tank | -3/Research Botlord-Tank | -3/Testing Mutant | -2/Research Mutant | -1/Access Resources | -11 -10 -10 -9 -9 -8 -8 -8 -7 -7 -7 -7 -7 -7 -6 -6 -6 -6 -6 -5 -4 -4 -4 -4 -3 -3 -2 -1 ----------- Run | Yrd Mat Min Mat Min Mat Gar Mat Fac Was Fac Low Low Zio Pro Fac Gar Fac Gar Fac Fac Gar Fac Gar Res Tes Res Acc Matter Collected 14956 | 230 351 26 1138 90 1349 1045 360 484 654 179 131 188 . 278 174 777 148 666 1836 . 1350 . 1055 . 2318 . 129 Remotely . | . . . . . . . . . . . . . . . . . . . . . . . . . . . . Salvage Created 14167 | . 546 107 2159 177 2157 1260 100 760 . 246 . 134 . 243 275 818 43 558 1291 . 1077 . 917 . 1121 . 178 Parts 742 | . 28 7 127 16 116 63 5 40 . 11 . 6 . 12 14 38 2 24 59 . 47 . 44 . 71 . 12 Haulers Intercepted 9 | . 1 . 4 . 3 . . . . . . . . . . . . . . . . . . . 1 . . Recyclers Shooed 7 | . . . 1 1 1 . . 1 . . . . . . 1 . . . 2 . . . . . . . . Parts Field Recycled . | . . . . . . . . . . . . . . . . . . . . . . . . . . . . Retrieved Matter . | . . . . . . . . . . . . . . . . . . . . . . . . . . . . Parts Self-Destructed 47 | . . . . . . . . . . . 1 21 . 25 . . . . . . . . . . . . . Prevented 10 | . . . . . . . . . . . 2 6 . 2 . . . . . . . . . . . . . Parts Restored . | . . . . . . . . . . . . . . . . . . . . . . . . . . . . Kills | -11 -10 -10 -9 -9 -8 -8 -8 -7 -7 -7 -7 -7 -7 -6 -6 -6 -6 -6 -5 -4 -4 -4 -4 -3 -3 -2 -1 ------- Run | Yrd Mat Min Mat Min Mat Gar Mat Fac Was Fac Low Low Zio Pro Fac Gar Fac Gar Fac Fac Gar Fac Gar Res Tes Res Acc Combat Hostiles Destroyed 289 | . 14 2 41 5 42 27 2 18 . 5 . 3 . 5 8 16 1 14 24 . 19 . 14 . 17 . 12 Melee 4 | . . . . . . . . . . . . . . . . . . . . . 3 . . . 1 . . Guns 212 | . 12 1 35 5 41 27 2 15 . 5 . 2 . 3 8 16 1 11 1 . 11 . 11 . 5 . . Cannons 39 | . . . . . . . . . . . . . . . . . . . 23 . 2 . 2 . 11 . 1 AOE 29 | . 2 1 6 . . . . 3 . . . . . 2 . . . 2 . . 2 . . . . . 11 Classes Destroyed 19 | . 4 1 5 1 2 2 . . . . . 1 . . . 2 . 1 . . . . . . . . . Worker 8 | . . 1 2 . 1 . . 1 . . . . . . 2 . . . . . . . . . 1 . . Builder 8 | . . . 2 . . . . 3 . . . . . . . . . . . . . . . . 3 . . Tunneler 1 | . . . . 1 . . . . . . . . . . . . . . . . . . . . . . . Hauler 9 | . 1 . 4 . 3 . . . . . . . . . . . . . . . . . . . 1 . . Recycler 7 | . . . 4 . 1 . . 1 . . . . . . . . . . 1 . . . . . . . . Operator 4 | . 1 . 1 . 1 . . . . . . . . . . . . . 1 . . . . . . . . Watcher 6 | . . . 3 . 2 . . . . . . . . . . 1 . . . . . . . . . . . Swarmer 66 | . 6 . 11 2 10 3 . 2 . . . . . . 4 6 . 1 4 . 3 . 1 . 1 . 12 Cutter 8 | . . . . . . . . . . . . . . . . 1 . 3 . . 4 . . . . . . Grunt 118 | . 8 2 19 3 21 12 1 14 . 3 . 2 . 4 2 5 . 2 10 . 8 . 1 . 1 . . Brawler 3 | . . . 1 . . . 1 . . . . . . . . . . . . . 1 . . . . . . Sentry 36 | . . . 10 . 8 5 . . . 1 . . . 1 1 3 . 4 2 . 1 . . . . . . Specialist 5 | . . . . . . 2 . . . . . . . . . . 1 . 2 . . . . . . . . Hunter 13 | . . . . . 2 1 . . . . . . . . . . . . 1 . . . 4 . 5 . . Programmer 37 | . . . . . . 4 . 2 . 1 . . . . 1 1 . 4 4 . 2 . 7 . 11 . . Heavy 2 | . . . . . 1 . . . . . . . . . . . . . 1 . . . . . . . . Behemoth 4 | . . . . . . . . . . . . . . . . . . 1 . . 1 . 2 . . . . Butcher 1 | . . . . . . . . . . . . . . . . 1 . . . . . . . . . . . Mutant 1 | . . . . . . . . . . . . 1 . . . . . . . . . . . . . . . Best Kill Streak 13 | . 5 3 4 3 7 7 1 13 . 2 . 1 . 2 5 3 1 7 6 . 3 . 4 . 5 . 12 Combat Bots Only 12 | . 5 2 4 3 6 7 1 9 . 2 . 1 . 2 3 3 1 7 5 . 3 . 4 . 3 . 12 Max Kills in Single Turn 3 | . 1 2 3 1 2 3 1 2 . 1 . 1 . 1 2 2 1 1 2 . 2 . 2 . 2 . 3 Gunslinging 2 | . . . 1 . . 2 . . . . . . . . 1 1 . . . . 1 . 1 . . . . Exploded 3 | . 1 1 3 . . . . 2 . . . . . 1 . . . 1 . . 2 . . . . . 3 Melee 1 | . . . . . . . . . . . . . . . . . . . . . 1 . . . 1 . . Uniques/NPCs Destroyed . | . . . . . . . . . . . . . . . . . . . . . . . . . . . . Combat | -11 -10 -10 -9 -9 -8 -8 -8 -7 -7 -7 -7 -7 -7 -6 -6 -6 -6 -6 -5 -4 -4 -4 -4 -3 -3 -2 -1 -------- Run | Yrd Mat Min Mat Min Mat Gar Mat Fac Was Fac Low Low Zio Pro Fac Gar Fac Gar Fac Fac Gar Fac Gar Res Tes Res Acc Hostile Shots Fired 2185 | . 60 10 204 19 206 204 15 118 . 71 . 25 . 62 42 123 8 164 162 . 139 . 99 . 151 52 251 Missed 699 | . 17 3 50 2 54 53 3 37 . 28 . 7 . 22 20 40 1 60 45 . 35 . 26 . 54 23 119 Hits 1486 | . 43 7 154 17 152 151 12 81 . 43 . 18 . 40 22 83 7 104 117 . 104 . 73 . 97 29 132 Melee 32 | . . . . . . . . . . . . . . . . . . 2 . . 23 . . . 7 . . Projectile 1454 | . 43 7 154 17 152 151 12 81 . 43 . 18 . 40 22 83 7 102 117 . 81 . 73 . 90 29 132 AOE 3 | . . . . . . . . . . . . . . . . . . . . . 3 . . . . . . Critical Strikes 71 | . 2 1 7 . 7 9 . 4 . . . . . 5 . 2 2 6 1 . 8 . 5 . 7 2 3 Actively Blocked 1 | . . . . . . . . . . . . . . . . . . . . . . . . . 1 . . Part Disruptions 2 | . . . . . . 1 . . . . . . . . . . . . . . 1 . . . . . . Damage Taken 26248 | . 620 138 1748 158 2419 2277 203 1569 12 509 . 321 . 595 372 1255 167 1417 2089 . 2205 . 1663 . 2703 800 3008 Core 5747 | . 160 45 327 32 183 288 47 120 6 69 . 12 . 84 15 184 . 186 206 . 464 . 222 . 689 800 1608 Absorbed by Shields 241 | . . . . . . . . . . . . . . . . . . . . . 11 . . . 230 . . Reduced by Siege Mode 135 | . . . . . . . . . . . . . . . 15 25 . 27 5 . . . 18 . 45 . . Ignored by Resistances 91 | . . . . . . . . . . . . . . 84 7 . . . . . . . . . . . . Regen/Repaired (Parts) 728 | . 37 . 115 . 18 . . 79 . 157 . . . . . . . . . . . . . . 322 . . Core Remaining (%) 45 | 100 . 18 . 10 . . 5 . . . . . . 58 . . . 54 79 . . . 40 . 47 44 . Volleys Fired 910 | . 51 8 130 9 128 78 27 49 13 18 1 9 . 19 16 46 8 49 48 . 77 1 50 1 65 . 9 Largest 4 | . 2 2 3 3 3 3 3 3 3 3 3 3 . 3 3 3 3 3 4 . 4 1 4 1 3 . 2 Hottest 204 | . 60 60 80 69 69 84 86 86 74 74 74 79 . 84 84 71 73 73 204 . 204 7 146 7 163 . 94 Shots Fired 2174 | . 85 15 357 29 369 229 40 119 27 42 4 23 . 39 44 105 10 94 169 . 143 1 108 1 111 . 10 Gun 1787 | . 85 15 354 29 364 228 23 107 21 36 4 21 . 34 43 97 3 73 12 . 103 . 71 . 64 . . Cannon 209 | . . . . . . . . . . . . . . . . . . 1 153 . 14 . 16 . 23 . 2 Launcher 25 | . . . 2 . 5 . . 2 . . . . . 4 1 . . 2 . . 1 . . . . . 8 Special 153 | . . . 1 . . 1 17 10 6 6 . 2 . 1 . 8 7 18 4 . 25 1 21 1 24 . . Kinetic 1924 | . 34 10 338 29 364 228 23 107 21 36 4 21 . 34 43 97 3 74 165 . 117 . 87 . 87 . 2 Thermal 2 | . . . 1 . . 1 . . . . . . . . . . . . . . . . . . . . . Explosive 20 | . . . 2 . . . . 2 . . . . . 4 1 . . 2 . . 1 . . . . . 8 Electromagnetic 77 | . 51 5 16 . 5 . . . . . . . . . . . . . . . . . . . . . . Robot Hit Streak 31 | . 8 11 27 14 31 21 5 8 10 9 5 6 . 11 8 14 8 8 9 . 13 4 11 4 11 . 1 Robot Miss Streak 7 | . 3 3 6 4 5 2 3 5 1 4 1 5 . 7 6 7 1 6 6 . 3 . 6 . 7 . 5 Penetration Max 2 | . . . . . . . . 1 . . . . . . . . . . 1 . 1 . 1 . 2 . . Secondary Targets 46 | . 1 . 3 3 6 10 . 5 . 2 . . . 1 3 6 . 3 . . 1 . 1 . 1 . . Max Gunslinging Chain 2 | . 1 . 1 1 1 2 . 1 . 1 . . . 1 1 1 . 1 . . 1 . 1 . 1 . . Shots Hit Robots 1491 | . 53 12 232 18 267 162 24 89 22 28 4 19 . 28 29 82 10 68 76 . 95 1 72 1 96 . 3 Core Hits 776 | . 27 5 92 8 97 63 3 75 1 12 2 21 . 28 45 51 3 47 39 . 38 . 31 . 64 . 24 Critical Kills 45 | . . . . . 1 . . 1 . . . . . . . 1 . . 21 . 3 . 2 . 16 . . Critical Parts Destroyed 62 | . . . . . 1 . . . . . . 1 . . . . . . 22 . 2 . 1 . 35 . . Critical Strikes 112 | . . . 1 . 2 . . 1 . . . 1 . . . 1 . . 43 . 6 . 4 . 53 . . Destroy 107 | . . . . . 2 . . 1 . . . . . . . 1 . . 43 . 5 . 3 . 52 . . Blast 1 | . . . . . . . . . . . . . . . . . . . . . . . 1 . . . . Corrupt 1 | . . . 1 . . . . . . . . . . . . . . . . . . . . . . . . Smash 1 | . . . . . . . . . . . . 1 . . . . . . . . . . . . . . . Impale 2 | . . . . . . . . . . . . . . . . . . . . . 1 . . . 1 . . Melee Attacks 155 | . . . 10 . 2 33 . 12 . . . 3 . . 3 17 2 14 . . 21 2 9 . 15 . 12 Impact 66 | . . . 10 . 2 33 . 10 . . . 3 . . 3 5 . . . . . . . . . . . Slashing . | . . . . . . . . . . . . . . . . . . . . . . . . . . . . Piercing 69 | . . . . . . . . . . . . . . . . 4 2 10 . . 16 2 9 . 14 . 12 Sneak Attacks 21 | . . . 1 . 1 . . 2 . . . . . . . 6 . 2 . . 5 . 1 . 3 . . Combat Hostiles . | . . . . . . . . . . . . . . . . . . . . . . . . . . . . Follow-up Attacks . | . . . . . . . . . . . . . . . . . . . . . . . . . . . . Damage Inflicted 27973 | . 803 266 3278 298 4210 2518 270 2024 327 396 55 367 . 751 631 1640 131 1515 1758 . 2110 . 1591 . 1891 12 1131 Guns 21557 | . 669 141 2975 298 3921 2518 270 1628 327 396 55 329 . 478 628 1421 59 1128 260 . 1534 . 1155 . 1367 . . Cannons 2217 | . . . . . . . . . . . . . . . . . . . 1375 . 168 . 254 . 371 . 49 Explosions 2895 | . 105 124 232 . 220 . . 385 . . . . . 273 3 . . 165 114 . 192 . . . . . 1082 Melee 1176 | . . . 55 . 36 . . . . . . 38 . . . 202 72 222 . . 216 . 182 . 153 . . Ramming 128 | . 29 1 16 . 33 . . 11 . . . . . . . 17 . . 9 . . . . . . 12 . Kinetic 23110 | . 205 92 2824 298 3921 2518 270 1628 327 396 55 329 . 478 628 1421 59 1128 1635 . 1702 . 1409 . 1738 . 49 Thermal 343 | . 105 124 . . . . . . . . . . . . . . . . 114 . . . . . . . . Explosive 2332 | . . . 232 . . . . 385 . . . . . 273 3 . . 165 . . 192 . . . . . 1082 Electromagnetic 884 | . 464 49 151 . 220 . . . . . . . . . . . . . . . . . . . . . . Impact 331 | . . . 55 . 36 . . . . . . 38 . . . 202 . . . . . . . . . . . Slashing . | . . . . . . . . . . . . . . . . . . . . . . . . . . . . Piercing 845 | . . . . . . . . . . . . . . . . . 72 222 . . 216 . 182 . 153 . . Highest Corruption 13 | . . . 7 7 . 4 4 1 1 1 1 1 1 1 3 . 4 8 4 . 1 1 6 . 8 13 2 Average Corruption 2 | . . . 1 7 . 3 4 1 1 1 1 1 1 1 3 . 4 6 2 . 1 1 4 . 2 6 1 Corruption Purged 4 | . . . . . . . . . . . . . . . . . . . . . . . . . 4 . . Corruption Blocked . | . . . . . . . . . . . . . . . . . . . . . . . . . . . . Effects 260 | . . . 31 9 . 29 19 4 1 7 1 7 2 8 . . 4 38 15 . 19 6 43 . 10 3 4 Message Errors 64 | . . . 8 2 . 7 4 1 . 3 . 3 2 2 . . 1 8 6 . 2 2 9 . 2 . 2 Matter Fused 59 | . . . 6 1 . 5 7 1 . 2 . 4 . 1 . . . 6 4 . 6 1 11 . 1 1 2 Heat Flow Errors 30 | . . . 2 1 . 3 1 1 . . . . . 1 . . 2 9 2 . 3 1 3 . . 1 . Energy Discharges 35 | . . . 1 2 . 5 2 . . . . . . 4 . . . 6 1 . 3 2 9 . . . . Parts Rejected 3 | . . . . . . 2 . . . . . . . . . . . . . . . . 1 . . . . Parts Fused 1 | . . . 1 . . . . . . . . . . . . . . . . . . . . . . . . Data Loss (minor) 25 | . . . 5 . . 3 3 . 1 . . . . . . . . 2 1 . 2 . 3 . 5 . . Data Loss (major) 14 | . . . 4 1 . 1 . . . . . . . . . . 1 1 . . 1 . 3 . 1 1 . Misfires 16 | . . . 2 2 . 3 1 . . 2 1 . . . . . . 1 . . 1 . 2 . 1 . . Alerts 11 | . . . . . . . 1 1 . . . . . . . . . 5 1 . 1 . 2 . . . . Weapon Failures 2 | . . . 2 . . . . . . . . . . . . . . . . . . . . . . . . Overload Shots . | . . . . . . . . . . . . . . . . . . . . . . . . . . . . Overflow Damage 197 | . . 23 9 . 21 . . 4 . . . 21 . . . . . 3 . . 14 . 77 . . . 25 Projectiles . | . . . . . . . . . . . . . . . . . . . . . . . . . . . . Explosions 62 | . . 23 . . . . . 4 . . . . . . . . . . . . 10 . . . . . 25 Melee 135 | . . . 9 . 21 . . . . . . 21 . . . . . 3 . . 4 . 77 . . . . Knockbacks 41 | . . . . . 1 . . . . . . . . . . 4 . . 13 . 1 . 2 . 19 1 . Impact 5 | . . . . . 1 . . . . . . . . . . 3 . . . . . . . . . 1 . Kinetic 34 | . . . . . . . . . . . . . . . . . . . 12 . 1 . 2 . 19 . . Secondary 2 | . . . . . . . . . . . . . . . . 1 . . 1 . . . . . . . . Self-Inflicted Damage 263 | . 39 29 4 . 19 . . 64 . . . . . . . . . . . . 21 . . . . 4 83 Shots 9 | . 1 1 . . 1 . . 2 . . . . . . . . . . . . 1 . . . . . 3 Rammed 27 | . 7 1 4 . 4 . . 3 . . . . . . . 1 . . 1 . . . . . 1 5 . Targets Rammed 27 | . 7 1 4 . 4 . . 3 . . . . . . . 1 . . 1 . . . . . 1 5 . Kicked . | . . . . . . . . . . . . . . . . . . . . . . . . . . . . Crushed . | . . . . . . . . . . . . . . . . . . . . . . . . . . . . Highest Temperature 364 | . 70 57 337 116 364 177 206 197 18 62 14 24 . 177 22 82 181 275 334 . 152 214 360 . 321 142 . Average Temperature 71 | . 30 35 42 20 89 62 57 24 13 24 10 9 . 58 6 35 70 73 101 . 48 114 110 . 100 93 . Received Heat Transfer 5904 | . 240 81 666 39 972 837 36 477 . 126 . 63 . 312 63 336 81 231 522 . 293 . 405 . 43 9 72 Effects 13 | . . . 5 . 1 . . . . . . . . . . . . . 3 . . . 1 . 3 . . Energy Bleed 3 | . . . 2 . . . . . . . . . . . . . . . . . . . . . 1 . . Interference 8 | . . . 3 . 1 . . . . . . . . . . . . . 2 . . . . . 2 . . Short Circuit 1 | . . . . . . . . . . . . . . . . . . . 1 . . . . . . . . Damage (minor) 1 | . . . . . . . . . . . . . . . . . . . . . . . 1 . . . . Siege Activations 19 | . . . . . . . . . . . . . . . 1 5 . 5 1 . . . 2 . 5 . . Total Turns 170 | . . . . . . . . . . . . . . . 10 32 . 39 6 . . . 22 . 61 . . Longest Duration 19 | . . . . . . . . . . . . . . . 10 16 . 10 6 . . . 15 . 19 . . Martial Activations . | . . . . . . . . . . . . . . . . . . . . . . . . . . . . Shielding Activations . | . . . . . . . . . . . . . . . . . . . . . . . . . . . . Robots Disrupted . | . . . . . . . . . . . . . . . . . . . . . . . . . . . . Combat Hostiles . | . . . . . . . . . . . . . . . . . . . . . . . . . . . . Robots Corrupted 3 | . . . 1 . 1 . . . . . . 1 . . . . . . . . . . . . . . . Combat Hostiles 2 | . . . . . 1 . . . . . . 1 . . . . . . . . . . . . . . . Parts Fried 8 | . 1 . 4 . 1 . . . . . . 2 . . . . . . . . . . . . . . . Impact Corruptions 5 | . . . 2 . 1 . . . . . . 1 . . . 1 . . . . . . . . . . . Robots Melted . | . . . . . . . . . . . . . . . . . . . . . . . . . . . . Combat Hostiles . | . . . . . . . . . . . . . . . . . . . . . . . . . . . . Parts Melted 3 | . . . . . . . . . . 2 . . . . . . . 1 . . . . . . . . . Heat Transferred 350 | . 150 100 . . . . . . . . . . . . . . . . 100 . . . . . . . . Parts Sabotaged . | . . . . . . . . . . . . . . . . . . . . . . . . . . . . Parts Stolen . | . . . . . . . . . . . . . . . . . . . . . . . . . . . . Parts Stripped . | . . . . . . . . . . . . . . . . . . . . . . . . . . . . Power Chain Reactions 4 | . 3 1 . . . . . . . . . . . . . . . . . . . . . . . . . Alert | -11 -10 -10 -9 -9 -8 -8 -8 -7 -7 -7 -7 -7 -7 -6 -6 -6 -6 -6 -5 -4 -4 -4 -4 -3 -3 -2 -1 ------- Run | Yrd Mat Min Mat Min Mat Gar Mat Fac Was Fac Low Low Zio Pro Fac Gar Fac Gar Fac Fac Gar Fac Gar Res Tes Res Acc Maximum Alert Level 4 | . 1 . 2 1 2 4 3 1 . 1 . . . . 1 4 2 2 1 . 3 2 3 2 3 2 2 Low Security (%) 40 | 100 84 100 45 51 67 . . 56 100 93 . . . . 48 8 . . 51 100 44 . . . 66 . . Level 1 16 | . 15 . 10 48 20 2 . 43 . 6 . . . . 51 8 . 12 48 . 14 19 16 . 4 . 27 Level 2 30 | . . . 43 . 12 21 99 . . . . . . . . 35 100 87 . . 25 80 68 100 15 100 72 Level 3 9 | . . . . . . 33 . . . . . . . . . 41 . . . . 15 . 15 . 14 . . Level 4 3 | . . . . . . 42 . . . . . . . . . 6 . . . . . . . . . . . Level 5 . | . . . . . . . . . . . . . . . . . . . . . . . . . . . . High Security . | . . . . . . . . . . . . . . . . . . . . . . . . . . . . Max Security . | . . . . . . . . . . . . . . . . . . . . . . . . . . . . Peak Influence 1369 | . 297 45 602 262 594 1369 700 297 50 220 . . . . 293 1163 610 619 392 176 959 503 902 507 930 519 562 Initial 666 | . . . . 222 98 384 666 238 22 . . . . . 126 142 610 332 324 176 116 503 255 507 229 519 251 Average 367 | . 81 8 288 199 189 977 611 151 5 84 . . . . 190 700 515 473 235 171 386 443 549 460 226 473 431 Influence Increases 14293 | . 477 63 1271 200 1264 1105 241 530 68 412 51 517 . 548 445 1131 179 507 813 . 1263 22 937 11 1493 . 745 Destroy 0b10 Robot/C 6995 | . 280 40 820 140 860 540 140 400 . 160 20 260 . 360 260 450 90 255 450 . 375 . 405 . 510 . 180 Destroy 0b10 Robot/NC 289 | . 10 5 80 5 40 . . 25 . 10 . . . . 25 9 . . 16 . . 4 . . 60 . . Destroy Leader 1174 | . 62 10 214 20 210 30 30 70 . 44 10 20 . 30 54 36 40 32 106 . 32 . 32 . 76 . 16 Allied During Kill 1299 | . . . . 5 9 . 34 11 . 158 21 222 . 158 56 121 33 20 57 . 106 2 152 . 134 . . Successful Hack 284 | . 32 . 42 . 80 14 5 7 . 23 . . . . 41 . 4 . 8 . . . . 11 17 . . Disable Machine 369 | . . . 15 15 15 . 30 15 . . . . . . . 15 12 . 48 . 12 12 24 . 144 . 12 Anti-Garrison Action 1933 | . . . . . . 400 . . . . . . . . . 402 . 151 . . 678 . 302 . . . . Destroy Structure 1047 | . 18 8 25 . 5 106 2 2 68 17 . . . . 9 11 . 49 80 . 24 4 22 . 468 . 129 Partial Spotted 36 | . . . . . . . . . . . . . . . . . . . . . . . . . . . 36 Lose Combat Pursuer 867 | . 75 . 75 15 45 15 . . . . . 15 . . . 87 . . 48 . 36 . . . 84 . 372 Influence Decreases 13749 | . 477 63 701 518 924 328 1085 990 133 258 205 338 179 346 444 171 867 363 1071 195 470 616 400 505 977 505 620 Entered New Map 5056 | . . . . 348 154 208 703 287 43 . 58 . 179 . 76 61 553 143 295 185 50 456 110 395 179 405 168 Time Decay 6029 | . 447 45 631 160 650 . 342 418 52 228 147 268 . 266 278 . 214 . 626 10 . 160 . 110 535 100 342 Lost Part 988 | . 30 18 70 10 100 120 . 110 . 10 . 10 . 20 30 30 . 60 20 . 100 . 90 . 50 . 110 Lost Ally 1526 | . . . . . 20 . 40 25 38 20 . 60 . 60 60 80 100 160 130 . 320 . 200 . 213 . . Purge Threat 150 | . . . . . . . . 150 . . . . . . . . . . . . . . . . . . . Squads Dispatched 66 | . 2 . 4 . 7 . 1 9 . 3 . . . . 3 . 7 . 8 . . 1 . 1 12 . 8 Investigation 16 | . 1 . 2 . 4 . . 2 . 1 . . . . . . 1 . 1 . . . . . 1 . 3 Extermination 17 | . . . . . . . . 1 . 1 . . . . 1 . 1 . 3 . . 1 . . 6 . 3 Reinforcement 20 | . 1 . 2 . 1 . 1 1 . 1 . . . . 2 . 2 . 4 . . . . 1 3 . 1 Assault 6 | . . . . . 1 . . 2 . . . . . . . . . . . . . . . . 2 . 1 Garrison 7 | . . . . . 1 . . 3 . . . . . . . . 3 . . . . . . . . . . Intercept . | . . . . . . . . . . . . . . . . . . . . . . . . . . . . Searches Triggered . | . . . . . . . . . . . . . . . . . . . . . . . . . . . . Construction Impeded 4 | . . . . . . . . 1 . . . . . . 1 . . . . . . . . . 2 . . Haulers Reinforced 1 | . . . . . . . . . . . . . . . 1 . . . . . . . . . . . . Active Scanning Responses . | . . . . . . . . . . . . . . . . . . . . . . . . . . . . Cargo Convoy Interrupts . | . . . . . . . . . . . . . . . . . . . . . . . . . . . . Stealth | -11 -10 -10 -9 -9 -8 -8 -8 -7 -7 -7 -7 -7 -7 -6 -6 -6 -6 -6 -5 -4 -4 -4 -4 -3 -3 -2 -1 --------- Run | Yrd Mat Min Mat Min Mat Gar Mat Fac Was Fac Low Low Zio Pro Fac Gar Fac Gar Fac Fac Gar Fac Gar Res Tes Res Acc Distress Signals 27 | . 5 . 4 . 5 . 1 1 . . . . . . . . . . 2 . . . . . 4 1 4 Communications Jammed . | . . . . . . . . . . . . . . . . . . . . . . . . . . . . Distress Signals . | . . . . . . . . . . . . . . . . . . . . . . . . . . . . Times Spotted 664 | . 36 5 61 8 64 31 22 29 5 14 1 17 . 18 16 36 11 25 37 . 48 2 38 1 76 4 59 Peak Tracking Total 15 | . 8 4 5 4 6 5 6 8 3 3 1 4 . 5 4 5 3 4 6 . 7 1 6 2 9 4 15 Tactical Retreats 39 | . 2 . 4 1 2 1 . . . . . 1 . . . 2 . . 4 . 3 . . . 6 . 13 Traps | -11 -10 -10 -9 -9 -8 -8 -8 -7 -7 -7 -7 -7 -7 -6 -6 -6 -6 -6 -5 -4 -4 -4 -4 -3 -3 -2 -1 ------- Run | Yrd Mat Min Mat Min Mat Gar Mat Fac Was Fac Low Low Zio Pro Fac Gar Fac Gar Fac Fac Gar Fac Gar Res Tes Res Acc Traps Triggered 27 | . 3 . 1 . 2 3 1 1 . 1 . . . . . 1 . . 2 . 7 . 2 . 2 1 . Indirectly . | . . . . . . . . . . . . . . . . . . . . . . . . . . . . Trap Hack Attempts 9 | . . . . . . . . . . . . . . . . 8 . . . . . . . . 1 . . Triggered . | . . . . . . . . . . . . . . . . . . . . . . . . . . . . Disarmed 1 | . . . . . . . . . . . . . . . . . . . . . . . . . 1 . . Reprogrammed 2 | . . . . . . . . . . . . . . . . 2 . . . . . . . . . . . Reused . | . . . . . . . . . . . . . . . . . . . . . . . . . . . . Traps Extracted . | . . . . . . . . . . . . . . . . . . . . . . . . . . . . Installed 1 | . . . . . . . . . . . . . . . . 1 . . . . . . . . . . . Triggered . | . . . . . . . . . . . . . . . . . . . . . . . . . . . . Most Traps Carried 1 | . . . . . . . . . . . . . . . . 1 1 1 1 1 1 1 1 . . . . Machines | -11 -10 -10 -9 -9 -8 -8 -8 -7 -7 -7 -7 -7 -7 -6 -6 -6 -6 -6 -5 -4 -4 -4 -4 -3 -3 -2 -1 ---------- Run | Yrd Mat Min Mat Min Mat Gar Mat Fac Was Fac Low Low Zio Pro Fac Gar Fac Gar Fac Fac Gar Fac Gar Res Tes Res Acc Machines Disabled 56 | . . . 1 1 1 4 2 1 . . . 1 . 2 . 7 1 2 4 . 7 1 6 . 14 . 1 Max in Single Turn 2 | . . . 1 1 1 1 1 1 . . . 1 . 1 . 1 . 1 2 . 1 . 1 . 1 . 1 Garrison Access 3 | . . . . . . . 1 1 . . . . . . . . . . 1 . . . . . . . . Garrison Relay 20 | . . . . . . 4 . . . . . . . . . 5 . 2 . . 6 . 3 . . . . Phase Generator 2 | . . . . . . . . . . . . . . . . 1 . . . . . . 1 . . . . Machines Repaired . | . . . . . . . . . . . . . . . . . . . . . . . . . . . . Machines Dismantled 2 | . . . . . . . . . . . . . . . . 1 . . . . . . 1 . . . . Machines Sabotaged . | . . . . . . . . . . . . . . . . . . . . . . . . . . . . Overloaded Fab Kills . | . . . . . . . . . . . . . . . . . . . . . . . . . . . . Hacking | -11 -10 -10 -9 -9 -8 -8 -8 -7 -7 -7 -7 -7 -7 -6 -6 -6 -6 -6 -5 -4 -4 -4 -4 -3 -3 -2 -1 --------- Run | Yrd Mat Min Mat Min Mat Gar Mat Fac Was Fac Low Low Zio Pro Fac Gar Fac Gar Fac Fac Gar Fac Gar Res Tes Res Acc Machines Accessed 79 | . 8 . 10 . 12 2 3 5 . 7 . . . . 3 3 2 1 4 1 . 2 2 1 7 . 6 Terminals 55 | . 7 . 6 . 9 2 1 2 . 5 . . . . 2 3 . 1 2 . . 1 2 1 5 . 6 Fabricators 5 | . . . . . . . . . . 2 . . . . . . 1 . 1 . . . . . 1 . . Repair Stations 7 | . 1 . 2 . 1 . . 2 . . . . . . . . . . . . . . . . 1 . . Recycling Units 1 | . . . 1 . . . . . . . . . . . . . . . . . . . . . . . . Scanalyzers 3 | . . . 1 . 1 . 1 . . . . . . . . . . . . . . . . . . . . Garrison Access 8 | . . . . . 1 . 1 1 . . . . . . 1 . 1 . 1 1 . 1 . . . . . Total Hacks 188 | . 23 . 22 . 39 3 7 19 . 12 . . . . 6 5 4 1 15 1 . 4 4 3 9 . 11 Successful 92 | . 14 . 11 . 19 2 4 6 . 6 . . . . 5 1 3 1 10 1 . 4 . 1 4 . . Failed 95 | . 9 . 11 . 20 1 2 13 . 6 . . . . 1 4 1 . 5 . . . 4 2 5 . 11 Catastrophic 22 | . 1 . 2 . 4 . . 1 . 1 . . . . 1 1 . . 1 . . . 2 . 2 . 6 Database Lockouts 1 | . . . . . . . 1 . . . . . . . . . . . . . . . . . . . . Manual 99 | . 18 . 12 . 35 . 3 9 . 9 . . . . 3 . . . 7 . . 1 . 1 . . 1 Terminals 137 | . 21 . 15 . 34 3 3 10 . 9 . . . . 4 5 . 1 6 . . 2 4 3 6 . 11 Fabricators 15 | . . . . . . . . . . 3 . . . . . . 3 . 7 . . . . . 2 . . Repair Stations 15 | . 2 . 4 . 2 . . 6 . . . . . . . . . . . . . . . . 1 . . Recycling Units 2 | . . . 2 . . . . . . . . . . . . . . . . . . . . . . . . Scanalyzers 6 | . . . 1 . 2 . 3 . . . . . . . . . . . . . . . . . . . . Garrison Access 13 | . . . . . 1 . 1 3 . . . . . . 2 . 1 . 2 1 . 2 . . . . . Terminal Hacks 22 | . 4 . 1 . 3 2 . 2 . 2 . . . . 1 1 . 1 . . . 1 . 1 3 . . Record 1 | . . . . . . . . . . . . . . . . . . . . . . 1 . . . . . Part Schematic 1 | . . . . . 1 . . . . . . . . . . . . . . . . . . . . . . Robot Schematic 4 | . 1 . . . 2 . . 1 . . . . . . . . . . . . . . . . . . . Prototype ID Bank 3 | . 2 . 1 . . . . . . . . . . . . . . . . . . . . . . . . Open Door 2 | . . . . . . . . . . . . . . . . 1 . . . . . . . . 1 . . Branch Access Points 1 | . . . . . . . . . . 1 . . . . . . . . . . . . . . . . . Emergency Access Points 2 | . . . . . . 1 . . . . . . . . . . . . . . . . . . 1 . . Fabricator Index 1 | . . . . . . . . . . 1 . . . . . . . . . . . . . . . . . Unreport Threat 1 | . . . . . . . . 1 . . . . . . . . . . . . . . . . . . . Locate Traps 2 | . . . . . . . . . . . . . . . . . . . . . . . . 1 1 . . Transport Status 1 | . 1 . . . . . . . . . . . . . . . . . . . . . . . . . . Zone Layout 1 | . . . . . . . . . . . . . . . 1 . . . . . . . . . . . . Garrison Registry 1 | . . . . . . . . . . . . . . . . . . 1 . . . . . . . . . Security Stations 1 | . . . . . . 1 . . . . . . . . . . . . . . . . . . . . . Fabricator Hacks 11 | . . . . . . . . . . 2 . . . . . . 2 . 6 . . . . . 1 . . Load Schematic 6 | . . . . . . . . . . 1 . . . . . . 1 . 3 . . . . . 1 . . Build 5 | . . . . . . . . . . 1 . . . . . . 1 . 3 . . . . . . . . Repair Station Hacks 10 | . 2 . 4 . 2 . . 2 . . . . . . . . . . . . . . . . . . . Scan Component 6 | . 1 . 2 . 1 . . 2 . . . . . . . . . . . . . . . . . . . Repair 4 | . 1 . 2 . 1 . . . . . . . . . . . . . . . . . . . . . . Recycling Unit Hacks . | . . . . . . . . . . . . . . . . . . . . . . . . . . . . Scanalyzer 5 | . . . 1 . 2 . 2 . . . . . . . . . . . . . . . . . . . . Retrieve Study 5 | . . . 1 . 2 . 2 . . . . . . . . . . . . . . . . . . . . Garrison Access Hacks 11 | . . . . . 1 . 1 1 . . . . . . 2 . 1 . 2 1 . 2 . . . . . Unlock Access 5 | . . . . . 1 . . . . . . . . . 1 . 1 . . 1 . 1 . . . . . Seal Access 2 | . . . . . . . 1 . . . . . . . . . . . 1 . . . . . . . . Coupler Status 4 | . . . . . . . . 1 . . . . . . 1 . . . 1 . . 1 . . . . . Unauthorized Hacks 33 | . 8 . 5 . 11 . 1 1 . 2 . . . . 2 . . . 2 . . 1 . . . . . Terminals 31 | . 8 . 5 . 11 . 1 1 . 1 . . . . 2 . . . 1 . . 1 . . . . . Track 1 | . . . . . 1 . . . . . . . . . . . . . . . . . . . . . . Assimilate 2 | . 2 . . . . . . . . . . . . . . . . . . . . . . . . . . Botnet 25 | . 5 . 4 . 9 . 1 1 . 1 . . . . 2 . . . 1 . . 1 . . . . . Operators 3 | . 1 . 1 . 1 . . . . . . . . . . . . . . . . . . . . . . Fabricators 2 | . . . . . . . . . . 1 . . . . . . . . 1 . . . . . . . . Liberate 1 | . . . . . . . . . . . . . . . . . . . 1 . . . . . . . . Recompile 1 | . . . . . . . . . . 1 . . . . . . . . . . . . . . . . . Repair Stations . | . . . . . . . . . . . . . . . . . . . . . . . . . . . . Recycling Units . | . . . . . . . . . . . . . . . . . . . . . . . . . . . . Scanalyzers . | . . . . . . . . . . . . . . . . . . . . . . . . . . . . Garrison Access . | . . . . . . . . . . . . . . . . . . . . . . . . . . . . Data Cores Recovered 3 | . . . . . 1 . . . . . . . . . 1 . . . . . . 1 . . . . . Used 1 | . . . . . 1 . . . . . . . . . . . . . . . . . . . . . . Hacking Detections 61 | . 5 . 9 . 11 1 1 4 . 3 . . . . 3 2 1 1 3 1 . 2 2 1 5 . 6 Full Trace Events 11 | . 1 . 2 . 2 . . 2 . . . . . . . . 1 . . . . . . . . . 3 Feedback Events 3 | . . . 1 . . . . . . . . . . . . . . . . . . . . . . . 2 Corruption 2 | . . . 1 . . . . . . . . . . . . . . . . . . . . . . . 1 Hackware Fried 1 | . . . . . . . . . . . . . . . . . . . . . . . . . . . 1 Feedback Blocked . | . . . . . . . . . . . . . . . . . . . . . . . . . . . . Robot Schematics Acquired 7 | . 1 . . . 2 . . 1 . . . . . . . . . . . . . . . . 3 . . Robots Built 9 | . . . . . . . . . . 2 . . . . . . 2 . 5 . . . . . . . . Authchips 4 | . . . . . . . . . . 1 . . . . . . . . 3 . . . . . . . . Time 393 | . . . . . . . . . . 67 . . . . . . 134 . 192 . . . . . . . . Total Robot Build Rating 35 | . . . . . . . . . . 8 . . . . . . 8 . 19 . . . . . . . . Part Schematics Acquired 8 | . . . . . 1 . . . . . . . . . . . . . . . . . . . 7 . . Parts Built . | . . . . . . . . . . . . . . . . . . . . . . . . . . . . Authchips . | . . . . . . . . . . . . . . . . . . . . . . . . . . . . Time . | . . . . . . . . . . . . . . . . . . . . . . . . . . . . Total Part Build Rating . | . . . . . . . . . . . . . . . . . . . . . . . . . . . . Part Studies Acquired 4 | . . . 1 . 2 . 1 . . . . . . . . . . . . . . . . . . . . Parts Repaired 4 | . 1 . 2 . 1 . . . . . . . . . . . . . . . . . . . . . . Time 163 | . 26 . 76 . 61 . . . . . . . . . . . . . . . . . . . . . . Parts Recycled . | . . . . . . . . . . . . . . . . . . . . . . . . . . . . Recycled Matter . | . . . . . . . . . . . . . . . . . . . . . . . . . . . . Retrieved Matter . | . . . . . . . . . . . . . . . . . . . . . . . . . . . . Retrieved Components . | . . . . . . . . . . . . . . . . . . . . . . . . . . . . Parts Scanalyzed . | . . . . . . . . . . . . . . . . . . . . . . . . . . . . Part Schematics Acquired . | . . . . . . . . . . . . . . . . . . . . . . . . . . . . Parts Damaged . | . . . . . . . . . . . . . . . . . . . . . . . . . . . . Bothacking | -11 -10 -10 -9 -9 -8 -8 -8 -7 -7 -7 -7 -7 -7 -6 -6 -6 -6 -6 -5 -4 -4 -4 -4 -3 -3 -2 -1 ------------ Run | Yrd Mat Min Mat Min Mat Gar Mat Fac Was Fac Low Low Zio Pro Fac Gar Fac Gar Fac Fac Gar Fac Gar Res Tes Res Acc Used RIF Installer 5 | . . . . . . 1 . . . . . . . . . 1 . 1 . . 1 . 1 . . . . Threat Obfuscator 1 | . . . . . . . . . . . . . . . . 1 . . . . . . . . . . . Robot Detection 1 | . . . . . . . . . . . . . . . . . . 1 . . . . . . . . . Watcher Feeds 1 | . . . . . . . . . . . . . . . . . . . . . 1 . . . . . . Autooverride 1 | . . . . . . . . . . . . . . . . . . . . . . . 1 . . . . Robots Hacked 120 | . . . . . . . 10 6 5 3 . 2 . 1 . 6 6 11 3 . 21 1 21 1 23 . . Non-combat 7 | . . . . . . . . 4 . 1 . 1 . . . . 1 . . . . . . . . . . Combat 113 | . . . . . . . 10 2 5 2 . 1 . 1 . 6 5 11 3 . 21 1 21 1 23 . . Autooverrided 9 | . . . . . . . . . . . . . . . . . . . . . . . 4 . 5 . . Robot Hacks Applied 114 | . . . . . . . 10 6 5 3 . 2 . 1 . 6 6 11 3 . 21 1 17 1 21 . . find_chute 3 | . . . . . . . . 3 . . . . . . . . . . . . . . . . . . . drop_inventory 2 | . . . . . . . . . . 1 . 1 . . . . . . . . . . . . . . . locate_prototypes 3 | . . . . . . . . . . . . . . . . . . . . . . . . . 3 . . report_analyses 4 | . . . . . . . . . . . . . . . . . . . . . . . . . 4 . . ignore_targets 5 | . . . . . . . . . 5 . . . . . . . . . . . . . . . . . . scatter_targeting 1 | . . . . . . . . . . . . . . 1 . . . . . . . . . . . . . disable_weapons 2 | . . . . . . . . . . . . . . . . 1 1 . . . . . . . . . . reboot_system 3 | . . . . . . . 1 . . . . . . . . . . 1 . . 1 . . . . . . go_dormant 1 | . . . . . . . . . . . . . . . . . . . . . 1 . . . . . . overwrite_iff 22 | . . . . . . . 2 1 . . . 1 . . . . . 3 1 . 2 . 8 . 4 . . formatsys_low 3 | . . . . . . . . 1 . . . . . . . . 1 . . . . . . . 1 . . formatsys_high 65 | . . . . . . . 7 1 . 2 . . . . . 5 4 7 2 . 17 1 9 1 9 . . Relay Couplers Released 92 | . . . . . . 19 . 3 . . . . . . . 25 . 11 . . 24 . 10 . . . . Machine Destruction 82 | . . . . . . 16 . 3 . . . . . . . 22 . 7 . . 24 . 10 . . . . Programmers 10 | . . . . . . 3 . . . . . . . . . 3 . 4 . . . . . . . . . Attached 51 | . . . . . . . 5 2 . 1 . . . . . 7 4 3 2 . 12 . 8 . 7 . . Fabnet Peak Effective % . | . . . . . . . . . . . . . . . . . . . . . . . . . . . . Robots Rewired 7 | . . . . . . . . . . . . . . . . 3 . . . . 3 . . . 1 . . Allies Hacked 6 | . . . . . . . . . . . . 1 . . . . . . 1 . . . 3 . 1 . . Hacks Repelled 2 | . . . . . . . . . . . . . . . . . . . 2 . . . . . . . . Allies | -11 -10 -10 -9 -9 -8 -8 -8 -7 -7 -7 -7 -7 -7 -6 -6 -6 -6 -6 -5 -4 -4 -4 -4 -3 -3 -2 -1 -------- Run | Yrd Mat Min Mat Min Mat Gar Mat Fac Was Fac Low Low Zio Pro Fac Gar Fac Gar Fac Fac Gar Fac Gar Res Tes Res Acc Total Allies 139 | . . . . 1 . . 9 3 19 4 . 3 . . . 8 7 10 11 . 22 1 21 1 19 . . Largest Group 19 | . . . . 1 1 . 7 5 19 10 10 11 7 7 3 5 5 3 6 1 8 5 9 8 8 . . Highest-Rated Group 475 | . . . . 31 31 . 85 73 475 319 319 332 215 215 94 159 156 106 184 41 387 237 323 375 375 . . Highest-Rated Ally 120 | . . . . 31 31 . 16 23 35 37 37 37 33 33 32 46 46 47 49 41 58 49 116 64 120 . . Total Orders 49 | . . . . . . . 6 5 1 2 . . . . 2 . 3 8 2 . 7 2 5 2 4 . . STAY 24 | . . . . . . . 3 2 1 . . . . . . . 1 5 1 . 4 1 3 1 2 . . FOLLOW 20 | . . . . . . . 3 2 . 1 . . . . . . 1 3 1 . 3 1 2 1 2 . . AID 3 | . . . . . . . . 1 . 1 . . . . . . 1 . . . . . . . . . . EXPLORE 2 | . . . . . . . . . . . . . . . 2 . . . . . . . . . . . . Ally Attacks 986 | . . . . 5 12 . 51 30 175 46 6 56 . 69 51 39 54 39 86 . 95 2 85 . 85 . . Total Damage 26542 | . . . . 64 104 . 615 487 5267 797 143 1441 . 1342 903 1241 1354 862 1637 . 2312 58 2247 . 5668 . . Kills 144 | . . . . 2 1 . 6 2 14 5 1 11 . 14 9 10 6 3 10 . 7 1 15 . 27 . . Allies Corrupted 13 | . . . . . . . . 1 . . . . . . 1 . . . 1 . 1 . 1 . 8 . . Allies Melted . | . . . . . . . . . . . . . . . . . . . . . . . . . . . . Intel | -11 -10 -10 -9 -9 -8 -8 -8 -7 -7 -7 -7 -7 -7 -6 -6 -6 -6 -6 -5 -4 -4 -4 -4 -3 -3 -2 -1 ------- Run | Yrd Mat Min Mat Min Mat Gar Mat Fac Was Fac Low Low Zio Pro Fac Gar Fac Gar Fac Fac Gar Fac Gar Res Tes Res Acc Active Infowar (turns) 4572 | . 1181 253 2149 . . . . . . . . . . . 586 403 . . . . . . . . . . . IFF 989 | . . . . . . . . . . . . . . . 586 403 . . . . . . . . . . . Structural 3583 | . 1181 253 2149 . . . . . . . . . . . . . . . . . . . . . . . . Robot Analysis Total . | . . . . . . . . . . . . . . . . . . . . . . . . . . . . Derelict Logs Recovered 4 | . . 1 . 1 . . . . . . 2 . . . . . . . . . . . . . . . . Drone Launches 3 | . . . . . . . . . . . . . . . 3 . . . . . . . . . . . . Drone Recoveries 1 | . . . . . . . . . . . . . . . 1 . . . . . . . . . . . . Exploration | -11 -10 -10 -9 -9 -8 -8 -8 -7 -7 -7 -7 -7 -7 -6 -6 -6 -6 -6 -5 -4 -4 -4 -4 -3 -3 -2 -1 ------------- Run | Yrd Mat Min Mat Min Mat Gar Mat Fac Was Fac Low Low Zio Pro Fac Gar Fac Gar Fac Fac Gar Fac Gar Res Tes Res Acc Turns Passed 30759 | 83 1914 253 2628 328 2440 2092 777 1153 378 897 629 714 326 726 609 1923 455 1300 2146 32 2675 321 1869 230 2894 201 766 Spaces Moved 15724 | 47 1077 97 1168 221 940 1029 379 497 206 491 392 386 181 410 274 1000 245 645 1081 19 964 113 828 123 1215 390 1306 Core 539 | 2 . . 16 . . . . 1 . . . . . . . . . . . . 1 . . . 89 390 40 Treads 12351 | 45 1077 97 262 2 620 1029 379 496 206 491 392 386 181 410 274 1000 245 645 1081 19 963 113 689 123 1126 . . Legs 94 | . . . 94 . . . . . . . . . . . . . . . . . . . . . . . . Wheels 1335 | . . . 796 219 320 . . . . . . . . . . . . . . . . . . . . . . Hover 542 | . . . . . . . . . . . . . . . . . . . . . . . 139 . . . 403 Flight 863 | . . . . . . . . . . . . . . . . . . . . . . . . . . . 863 Fastest Speed 40 | 50 160 160 100 130 115 160 160 155 155 155 155 160 160 160 160 160 160 160 160 167 166 245 108 160 50 50 40 Average Speed 160 | 155 160 227 163 130 194 164 169 179 155 155 157 160 160 160 160 160 160 160 167 167 232 245 176 160 199 50 48 Slowest Speed 900 | 160 160 240 550 240 240 400 240 900 155 155 160 160 160 160 160 160 160 160 245 167 850 245 540 160 240 50 100 Overloaded Moves . | . . . . . . . . . . . . . . . . . . . . . . . . . . . . Propulsion Burnouts . | . . . . . . . . . . . . . . . . . . . . . . . . . . . . Robots Hopped 3 | . . . . . . . . . . . . . . . . . . . . . . . . . . . 3 Potential Cave-ins 1 | . . . . . . . . . . . . . . . . . . . . . . . . . . . 1 Cave-ins Triggered . | . . . . . . . . . . . . . . . . . . . . . . . . . . . . Exploration Rate (%) 44 | 3 98 19 94 52 78 93 32 18 84 19 67 61 12 65 16 89 8 61 20 1 71 2 51 3 86 11 29 Regions Visited 27 Branch Regions 7 Pre-discovered Areas 1 | . . . . . . . . . . . 1 . . . . . . . . . . . . . . . . Known Exits Taken 7 | . . 1 . . 1 . . . . 1 . . . . 1 . 1 . . 1 . 1 . . . . . Unknown Exits Taken 13 | 1 1 . 1 1 . . 1 . . . 1 1 1 1 . . . . 1 . . . . 1 1 1 . Scrap Searched 12 | . . . . 3 . . . . . . 4 . . 5 . . . . . . . . . . . . . Spaces Dug 21 | . . . 1 . 1 1 . 2 . . . . . . 2 2 . . . . 2 2 . . 2 . 6 Terrain Destroyed 257 | . 24 10 17 . 1 1 2 4 1 . . . . 24 8 2 . 18 40 . 22 2 8 . 20 . 53 Melee 20 | . . . 1 . 1 1 . 2 . . . . . . 2 2 . . . . 1 2 . . 2 . 6 Projectile 35 | . . . . . . . 2 2 1 . . . . . . . . 2 . . 16 . 8 . 3 . 1 AOE 187 | . 24 10 16 . . . . . . . . . . 24 6 . . 16 40 . 5 . . . . . 46 Terrain Rammed . | . . . . . . . . . . . . . . . . . . . . . . . . . . . . Walls Destroyed . | . . . . . . . . . . . . . . . . . . . . . . . . . . . . Machines Disabled . | . . . . . . . . . . . . . . . . . . . . . . . . . . . . Actions | -11 -10 -10 -9 -9 -8 -8 -8 -7 -7 -7 -7 -7 -7 -6 -6 -6 -6 -6 -5 -4 -4 -4 -4 -3 -3 -2 -1 --------- Run | Yrd Mat Min Mat Min Mat Gar Mat Fac Was Fac Low Low Zio Pro Fac Gar Fac Gar Fac Fac Gar Fac Gar Res Tes Res Acc Total 19290 | 54 1182 114 1609 239 1264 1206 482 653 245 601 402 461 218 446 405 1215 295 824 1307 19 1255 154 1132 156 1557 395 1400 Wait 1670 | . 32 8 226 9 130 7 52 54 12 79 6 53 37 12 99 82 23 73 137 . 98 38 160 31 162 1 49 Move 15687 | 46 1076 96 1167 220 939 1027 378 497 205 490 391 385 180 409 273 998 244 643 1080 18 962 112 826 122 1214 389 1300 Hop 3 | . . . . . . . . . . . . . . . . . . . . . . . . . . . 3 Pick Up 197 | 1 9 . 26 1 18 22 5 6 5 2 1 3 1 . 4 17 3 13 10 . 26 . 10 . 14 . . Fast Attach 87 | 6 1 . 5 . 10 5 2 3 . 1 . 1 . 2 3 3 . 1 1 . 6 . 16 . 8 . 13 Attach 127 | . 4 1 14 . 12 12 2 12 1 2 1 1 . 1 3 3 1 9 9 1 15 1 5 . 11 . 6 Detach 18 | . . . 1 . 1 . . 1 . . . . . . . . . 1 . . 1 . 1 . 6 . 6 Swap 202 | 1 1 . 14 . 7 12 9 11 8 7 . 4 . 3 2 19 9 18 16 . 17 . 22 1 21 . . Drop 115 | . 1 . 12 . 13 8 4 4 1 2 2 2 . . 2 9 2 2 4 . 9 . 17 . 19 . 2 Fire 910 | . 51 8 130 9 128 78 27 49 13 18 1 9 . 19 16 46 8 49 48 . 77 1 50 1 65 . 9 Melee 155 | . . . 10 . 2 33 . 12 . . . 3 . . 3 17 2 14 . . 21 2 9 . 15 . 12 Ram 6 | . . . 1 . . . . . . . . . . . . . . . . . . . . . . 5 . Kick . | . . . . . . . . . . . . . . . . . . . . . . . . . . . . Crush 21 | . 7 1 3 . 4 . . 3 . . . . . . . 1 . . 1 . . . . . 1 . . Escape Stasis 20 | . . . . . . 2 . . . . . . . . . . . . . . 14 . 2 . 2 . . Rewire 44 | . . . . . . . 3 1 . . . . . . . 2 3 1 1 . 9 . 5 1 18 . . Trap 10 | . . . . . . . . . . . . . . . . 9 . . . . . . . . 1 . . Miscellaneous 18 | . . . . . . . . . . . . . . . . 9 . . . . . . 9 . . . . Route ------- -11/Scrapyard -10/Materials (discovered 6 exits: *Mat x3 / [*Min x2] / [*Sub]) -10/Mines (discovered 2 exits: *Mat x2) -9/Materials (discovered 5 exits: *Mat x3 / [*Min x2]) -9/Mines (discovered 3 exits: *Mat x2 / [*Zio]) -8/Materials (discovered 4 exits: *Fac x3 / Gar) -8/Garrison (discovered 4 exits: *Mat x4) -8/Materials -7/Factory -7/Waste -7/Factory (discovered 3 exits: Sto / *Low x2) -7/Lower Caves -7/Lower Caves -7/Zion -6/Proximity Caves -6/Factory (discovered 3 exits: Fac / [*Low] / Gar) -6/Garrison (discovered 3 exits: *Fac x3) -6/Factory -6/Garrison (discovered 4 exits: *Fac x3 / [Fac]) -5/Factory -4/Factory -4/Garrison (discovered 4 exits: *Fac x4) -4/Factory -4/Garrison (discovered 2 exits: *Res x2) -3/Research -3/Testing -2/Research -1/Access History --------- Turn | Location | Event 2 | -11/Scrapyard | Met Revision 17 7 | -11/Scrapyard | Discovered new exit (range 16) 84 | -11/Scrapyard | Entered Materials 313 | -10/Materials | Build established: Mutant 456 | -10/Materials | Discovered new exit (range 13) 510 | -10/Materials | Discovered new exit (range 6) 647 | -10/Materials | Repaired EM Pulse Gun 679 | -10/Materials | Discovered new exit (range 16) 845 | -10/Materials | Discovered new exit (range 11) 949 | -10/Materials | Discovered new exit (range 14) 970 | -10/Materials | Core integrity fell below 50% 1038 | -10/Materials | Discovered new exit (range 12) 1998 | -10/Materials | Entered Mines 1999 | -10/Mines | Assembled infested the area 2042 | -10/Mines | Core integrity fell below 20% 2080 | -10/Mines | Discovered new exit (range 12) 2090 | -10/Mines | Identified exit to Materials 2251 | -10/Mines | Entered Materials 2251 | -9/Materials | Evolved 2 slots: Utility x1, Weapon x1 2603 | -9/Materials | Build established: Skirmisher 2959 | -9/Materials | Discovered new exit (range 16) 3037 | -9/Materials | Discovered new exit (range 13) 3325 | -9/Materials | Repaired Imp. Assault Rifle 3334 | -9/Materials | Discovered new exit (range 12) 3481 | -9/Materials | Core integrity fell below 50% 3545 | -9/Materials | Repaired Imp. Assault Rifle 4288 | -9/Materials | Discovered new exit (range 15) 4465 | -9/Materials | Core integrity fell below 20% 4595 | -9/Materials | Discovered new exit (range 14) 4879 | -9/Materials | Entered Mines 4920 | -9/Mines | Build established: Scavenger-Gunner 4953 | -9/Mines | A Derelict revealed a hidden shortcut to a safe place 5041 | -9/Mines | Escorted by a lone wolf Derelict 5042 | -9/Mines | Discovered new exit (range 14) 5049 | -9/Mines | Discovered new exit (range 10) 5147 | -9/Mines | Learned 2 Materials zone layouts 5207 | -9/Mines | Entered Materials 5207 | -8/Materials | Accompanied by 1 ally 5207 | -8/Materials | Evolved 2 slots: Propulsion x1, Utility x1 5943 | -8/Materials | Discovered new exit (range 16) 6083 | -8/Materials | Repaired Corrupted Dynamic Insulation System 6135 | -8/Materials | Build established: Scavenger-Tank 6620 | -8/Materials | Discovered new exit (range 9) 7163 | -8/Materials | Build established: Tank 7245 | -8/Materials | Discovered new exit (range 4) 7573 | -8/Materials | Garrison activated, responded to threat 7607 | -8/Materials | First assault squad dispatched 7645 | -8/Materials | Identified exit to Garrison 7647 | -8/Materials | Entered Garrison 7661 | -8/Garrison | Lost 3 parts (1n1u1w) 7701 | -8/Garrison | Garrison Relay disabled 7721 | -8/Garrison | Triggered checkpoint 7833 | -8/Garrison | Triggered checkpoint 7846 | -8/Garrison | Triggered checkpoint 7875 | -8/Garrison | Build established: Gunner 7892 | -8/Garrison | Destroyed 7 combat bots 7946 | -8/Garrison | Discovered new exit (range 9) 7967 | -8/Garrison | Learned Materials security intel 7993 | -8/Garrison | Triggered checkpoint 8023 | -8/Garrison | Garrison Relay disabled 8224 | -8/Garrison | Garrison Relay disabled 8265 | -8/Garrison | Triggered checkpoint 8277 | -8/Garrison | Core integrity fell below 50% 8370 | -8/Garrison | Discovered new exit (range 12) 8504 | -8/Garrison | Discovered new exit (range 5) 8609 | -8/Garrison | Triggered checkpoint 8731 | -8/Garrison | Triggered checkpoint 8780 | -8/Garrison | Core integrity fell below 20% 8812 | -8/Garrison | Lost 7 parts (3n4w) 8891 | -8/Garrison | Discovered new exit (range 3) 9149 | -8/Garrison | Build established: Scavenger-Mutant 9155 | -8/Garrison | Garrison Relay disabled 9597 | -8/Garrison | Triggered checkpoint 9622 | -8/Garrison | Installed Relay Interface Framework 9739 | -8/Garrison | Entered Materials 10100 | -8/Materials | Build established: Bothacker-Gunner 10171 | -8/Materials | Central database locked down 10462 | -8/Materials | Discovered new exit (range 16) 10516 | -8/Materials | Entered Factory 10516 | -7/Factory | Accompanied by 5 allies 10516 | -7/Factory | Evolved 2 slots: Utility x2 10693 | -7/Factory | Noticed a derelict Sapper rigging charges 10732 | -7/Factory | Lost 3 parts (2n1w) 10799 | -7/Factory | Build established: Bothacker-Mutant 11109 | -7/Factory | Build established: Bothacker-Tank 11132 | -7/Factory | Garrison activated, responded to threat 11174 | -7/Factory | Lost 4 allies 11203 | -7/Factory | Destroyed 9 combat bots 11269 | -7/Factory | Lost 7 parts (2p3n1u1w) 11440 | -7/Factory | Build established: Bothacker-Gunner 11478 | -7/Factory | Discovered new exit (range 4) 11669 | -7/Factory | Manually triggered Chute Trap 11669 | -7/Factory | Sucked down chute 11669 | -7/Factory | Entered Waste 11679 | -7/Waste | 1 allies followed down the chute 11745 | -7/Waste | Spotted C-40 Crusher 11768 | -7/Waste | Spotted C-40 Crusher 11810 | -7/Waste | Spotted C-40 Crusher 11822 | -7/Waste | Spotted C-40 Crusher 11883 | -7/Waste | Spotted C-40 Crusher 11891 | -7/Waste | Warlord forces began an assault 11911 | -7/Waste | Allies destroyed C-40 Crusher 11912 | -7/Waste | Spotted C-40 Crusher 11919 | -7/Waste | Allies destroyed C-40 Crusher 11932 | -7/Waste | Allies destroyed C-40 Crusher 11957 | -7/Waste | Allies destroyed C-40 Crusher 11986 | -7/Waste | Lost 11 allies 12013 | -7/Waste | Discovered new exit (range 16) 12047 | -7/Waste | Entered Factory 12047 | -7/Factory | Accompanied by 8 allies 12177 | -7/Factory | Identified exit to Storage 12177 | -7/Factory | Identified exit to Lower Caves 12847 | -7/Factory | Fabricated P-60 Hacker (x2) 12944 | -7/Factory | Entered Lower Caves 12944 | -7/Lower Caves | Accompanied by 10 allies 13049 | -7/Lower Caves | Encountered a Warlord checkpoint 13231 | -7/Lower Caves | Learned location of Zion (-7) 13258 | -7/Lower Caves | Entered a destroyed Warlord outpost 13347 | -7/Lower Caves | Learned location of 1 exit from Factory 13497 | -7/Lower Caves | Build established: Bothacker-Tank 13526 | -7/Lower Caves | Discovered new exit (range 6) 13573 | -7/Lower Caves | Entered another Lower Caves area 13573 | -7/Lower Caves | Accompanied by 9 allies 13680 | -7/Lower Caves | Hacker 4b assimilated hostile S-27 Virus 13699 | -7/Lower Caves | Attracted the attention of an 0b10 checkpoint 13978 | -7/Lower Caves | Build established: Commander-Tank 13981 | -7/Lower Caves | Spotted B-75 Beast 13997 | -7/Lower Caves | Allies destroyed B-75 Beast 14026 | -7/Lower Caves | Lost 3 allies 14059 | -7/Lower Caves | Attacked by a delusional Derelict stockpiling parts 14235 | -7/Lower Caves | Discovered new exit (range 8) 14287 | -7/Lower Caves | Entered Zion 14287 | -7/Zion | Accompanied by 7 allies 14342 | -7/Zion | Discovered new exit (range 13) 14360 | -7/Zion | Build established: Bothacker-Mutant 14412 | -7/Zion | Found CR-A16's Pointy Stick 14613 | -7/Zion | Entered Proximity Caves 14613 | -6/Proximity Caves | Accompanied by 7 allies 14722 | -6/Proximity Caves | Attracted the attention of an 0b10 checkpoint 14939 | -6/Proximity Caves | Attracted the attention of an 0b10 base 15327 | -6/Proximity Caves | Discovered new exit (range 3) 15339 | -6/Proximity Caves | Entered Factory 15339 | -6/Factory | Accompanied by 3 allies 15339 | -6/Factory | Evolved 2 slots: Propulsion x1, Utility x1 15340 | -6/Factory | Identified exit to Factory 15641 | -6/Factory | Build established: Scavenger-Tank 15820 | -6/Factory | Discovered new exit (range 12) 15872 | -6/Factory | Lost 3 allies 15941 | -6/Factory | Identified exit to Garrison 15948 | -6/Factory | Entered Garrison 16246 | -6/Garrison | Triggered checkpoint 16278 | -6/Garrison | Garrison Relay disabled 16352 | -6/Garrison | Triggered checkpoint 16437 | -6/Garrison | Discovered new exit (range 8) 16534 | -6/Garrison | Triggered checkpoint 16555 | -6/Garrison | Garrison Relay disabled 16638 | -6/Garrison | Build established: Bothacker-Mutant 16664 | -6/Garrison | Triggered checkpoint 16864 | -6/Garrison | Discovered new exit (range 13) 16875 | -6/Garrison | Expanded RIF knowledge: Threat Obfuscation 16942 | -6/Garrison | Triggered checkpoint 16957 | -6/Garrison | Garrison Relay disabled 16970 | -6/Garrison | Build established: Bothacker-Tank 17114 | -6/Garrison | Phase Generator disabled 17155 | -6/Garrison | Garrison Relay disabled 17272 | -6/Garrison | Triggered checkpoint 17310 | -6/Garrison | Triggered checkpoint 17388 | -6/Garrison | Triggered checkpoint 17447 | -6/Garrison | Garrison Relay disabled 17522 | -6/Garrison | Discovered new exit (range 12) 17871 | -6/Garrison | Entered Factory 17871 | -6/Factory | Accompanied by 3 allies 18087 | -6/Factory | Spotted B-75 Beast 18117 | -6/Factory | Allies destroyed B-75 Beast 18176 | -6/Factory | Lost 3 allies 18269 | -6/Factory | Fabricated P-60 Hacker? 18324 | -6/Factory | Identified exit to Garrison 18326 | -6/Factory | Entered Garrison 18326 | -6/Garrison | Accompanied by 3 allies 18350 | -6/Garrison | Discovered exit to Factory (range 59) 18350 | -6/Garrison | Discovered exit to Factory (range 57) 18350 | -6/Garrison | Discovered exit to Factory (range 51) 18350 | -6/Garrison | Discovered new exit (range 64) 18424 | -6/Garrison | Spotted B-75 Beast 18446 | -6/Garrison | Triggered checkpoint 18446 | -6/Garrison | Triggered checkpoint 18469 | -6/Garrison | Revealed the true nature of CR-A16's Pointy Stick 18472 | -6/Garrison | Destroyed B-75 Beast 18483 | -6/Garrison | Triggered checkpoint 18488 | -6/Garrison | Lost 3 allies 18509 | -6/Garrison | Destroyed 7 combat bots 18657 | -6/Garrison | Lost 3 allies 18868 | -6/Garrison | Garrison Relay disabled 18870 | -6/Garrison | Triggered checkpoint 19049 | -6/Garrison | Lost 3 parts (1p1n1w) 19242 | -6/Garrison | Triggered checkpoint 19450 | -6/Garrison | Expanded RIF knowledge: Robot Detection 19568 | -6/Garrison | Garrison Relay disabled 19626 | -6/Garrison | Entered Factory 19626 | -5/Factory | Accompanied by 2 allies 19626 | -5/Factory | Evolved 2 slots: Utility x1, Weapon x1 19907 | -5/Factory | Discovered new exit (range 6) 20128 | -5/Factory | Build established: Bothacker-Gunner 20481 | -5/Factory | Fabricated P-60 Hacker? 20654 | -5/Factory | Fabricated P-60 Hacker (x2) 20716 | -5/Factory | Fabricated M-28 Smith? 21067 | -5/Factory | Lost 3 allies 21772 | -5/Factory | Entered another Factory area 21772 | -4/Factory | Accompanied by 1 ally 21772 | -4/Factory | Evolved 2 slots: Power x1, Utility x1 21799 | -4/Factory | Identified exit to Garrison 21804 | -4/Factory | Entered Garrison 21804 | -4/Garrison | Accompanied by 1 ally 21822 | -4/Garrison | Triggered checkpoint 21870 | -4/Garrison | Lost 3 parts (1n2w) 21890 | -4/Garrison | Discovered new exit (range 5) 22022 | -4/Garrison | Triggered checkpoint 22041 | -4/Garrison | Garrison Relay disabled 22246 | -4/Garrison | Triggered checkpoint 22344 | -4/Garrison | Spotted B-86 Titan 22367 | -4/Garrison | Destroyed B-86 Titan 22422 | -4/Garrison | Lost 3 parts (2n1u) 22422 | -4/Garrison | Lost 8 allies 22654 | -4/Garrison | Lost 4 parts (1p1u2w) 22782 | -4/Garrison | Discovered new exit (range 10) 22881 | -4/Garrison | Expanded RIF knowledge: Watcher Feeds 22903 | -4/Garrison | Build established: Bothacker-Mutant 23038 | -4/Garrison | Triggered checkpoint 23095 | -4/Garrison | Garrison Relay disabled 23096 | -4/Garrison | Triggered checkpoint 23350 | -4/Garrison | Triggered checkpoint 23385 | -4/Garrison | Garrison Relay disabled 23428 | -4/Garrison | Build established: Botlord-Gunner 23438 | -4/Garrison | Triggered checkpoint 23542 | -4/Garrison | Triggered checkpoint 23563 | -4/Garrison | Garrison Relay disabled 23696 | -4/Garrison | Triggered checkpoint 23712 | -4/Garrison | Discovered new exit (range 10) 23828 | -4/Garrison | Triggered checkpoint 23946 | -4/Garrison | Triggered checkpoint 24018 | -4/Garrison | Triggered checkpoint 24167 | -4/Garrison | Garrison Relay disabled 24331 | -4/Garrison | Lost 3 allies 24337 | -4/Garrison | Garrison Relay disabled 24416 | -4/Garrison | Discovered new exit (range 15) 24479 | -4/Garrison | Entered Factory 24479 | -4/Factory | Accompanied by 4 allies 24706 | -4/Factory | Identified exit to Garrison 24800 | -4/Factory | Entered Garrison 24800 | -4/Garrison | Accompanied by 4 allies 24842 | -4/Garrison | Triggered checkpoint 24877 | -4/Garrison | Garrison Relay disabled 24909 | -4/Garrison | Expanded RIF knowledge: Autooverride 25079 | -4/Garrison | Spotted B-86 Titan 25106 | -4/Garrison | Destroyed B-86 Titan 25114 | -4/Garrison | Lost 3 parts (2n1u) 25136 | -4/Garrison | Lost 4 allies 25344 | -4/Garrison | Heavy support dispatched to Research 25432 | -4/Garrison | Spotted B-86 Titan 25435 | -4/Garrison | Triggered checkpoint 25470 | -4/Garrison | Destroyed B-86 Titan 25655 | -4/Garrison | Core integrity fell below 50% 25738 | -4/Garrison | Triggered checkpoint 25751 | -4/Garrison | Heavy support dispatched to Research 25784 | -4/Garrison | Build established: Botlord-Tank 25854 | -4/Garrison | Triggered checkpoint 25977 | -4/Garrison | Garrison Relay disabled 26048 | -4/Garrison | Discovered new exit (range 10) 26108 | -4/Garrison | Triggered checkpoint 26272 | -4/Garrison | Triggered checkpoint 26370 | -4/Garrison | Discovered new exit (range 14) 26441 | -4/Garrison | Phase Generator disabled 26511 | -4/Garrison | Lost 4 allies 26511 | -4/Garrison | Garrison Relay disabled 26669 | -4/Garrison | Entered Research 26669 | -3/Research | Accompanied by 7 allies 26669 | -3/Research | Evolved 2 slots: Utility x2 26802 | -3/Research | Discovered new exit (range 15) 26899 | -3/Research | Entered Testing 26899 | -3/Testing | Accompanied by 8 allies 27305 | -3/Testing | Lost 9 allies 27451 | -3/Testing | Found Prototype Ballistic Cannon 27451 | -3/Testing | Identified Perforator 27489 | -3/Testing | Lost 3 allies 27645 | -3/Testing | Found Exp. Hardlight Generator 27741 | -3/Testing | Found Hvy. Regenerative Plating 27746 | -3/Testing | Found Hvy. Regenerative Plating 27752 | -3/Testing | Found SHELL Armor 27912 | -3/Testing | Lost 3 allies 27982 | -3/Testing | Lost 3 allies 28721 | -3/Testing | Rewired PD-RY8GZPA4X7 28752 | -3/Testing | Found Prototype Launcher 29149 | -3/Testing | First assault squad dispatched 29684 | -3/Testing | Spotted Striker 29684 | -3/Testing | Spotted Striker 29749 | -3/Testing | Released all parts (13) 29762 | -3/Testing | Lost 3 allies 29777 | -3/Testing | Core integrity fell below 50% 29779 | -3/Testing | Lost 3 parts (1p1n1u) 29789 | -3/Testing | Discovered new exit (range 9) 29793 | -3/Testing | Entered Research 29793 | -2/Research | Evolved 2 slots: Utility x2 29986 | -2/Research | Core integrity fell below 50% 29986 | -2/Research | System corruption reached 10% 29991 | -2/Research | Discovered new exit (range 5) 29994 | -2/Research | Entered Access 29994 | -1/Access | Evolved 2 slots: Utility x2 30050 | -1/Access | Build established: Mutant 30093 | -1/Access | Spotted B-99 Colossus 30124 | -1/Access | Spotted B-99 Colossus 30231 | -1/Access | Destroyed 12 combat bots 30241 | -1/Access | Lost 4 parts (1n1u2w) 30405 | -1/Access | Core integrity fell below 50% 30468 | -1/Access | Hacking Suite fried by hacking feedback 30739 | -1/Access | Core integrity fell below 20% 30744 | -1/Access | First assault squad dispatched 30760 | -1/Access | Destroyed by S-43 Plague with Heavy Machine Gun Last Messages --------------- 30745_ C-30 ARC bursts open, deploying its payload. 30745_ H-88 Terminator unfolds itself. 30745_ Critical hit (Destroy). 30745_ Impulse Thruster Array destroyed. 30746_ Slug penetrates Door. 30746_ Slug penetrates Wall. 30749_ W-44 Eye sends out distress signal. 30751_ Penetrated by Slug. 30751_ Impulse Thruster Array destroyed. 30751_ Slug penetrates Wall. 30756_ Penetrated by Slug. 30756_ Slug penetrates Wall. 30756_ Detecting nearby Garrison Access. 30759_ Slug penetrates S-43 Plague. 30759_ Slug penetrates Repair Station. 30760_ Repair Station disabled. 30760_ Backup Power III tumbles out of repair station. [Achievement: 40k Club] Map ----- +----------------------------------------------------+ | ?????????????????????????????????????????????????? | | ?????????????????????????????????????????????????? | | ?????????????????????????????????????????????????? | | ?????????????????????????????????????????????????? | | ?????????????????????????????????????????????????? | | ?????????????????????????????????????????????????? | | ?????????????????????????????????????????????????? | | ?????????????????????????????????????????????????? | | ?????????????????????????????????????????????????? | | ?????????????????????????????????????????????????? | | ?????????????????????????????????????????????????? | | ?????????????????????????????????????????????????? | | ?????????????????????????????????????????????????? | | ?????????????????????????????????????????????????? | | ?????????????????????????????????????????????????? | | ?????????????????????????????????????????????????? | | ???????????????????????????????????""""? ????????? | | ???????????????????????????????????"""? ?????????? | | ???????????????????????????????????""""??????????? | | ??????????????????????????????????? ???????????? | | ??????????????????????###########?? ????????????? | | ??????????????????????# #?#/#????????????? | | ??????????????????????# ### ###??????????? | | ??????????????????????# """ # #??????????? | | ??????????????????????# ""R" # #####??????? | | ??????????????????????# @" *" /s Y #??????? | | ??????????????????????# s* s #s ### #??????? | | ??????????????????????# p # #?# ####???# | | ??????????????????????# ## ##?# #???# | | ??????????????????????############ #??# #???# | | ?????????????????????????????????# #??# ##### | | ?????????????????????????????????# #??# | | ?????????????????????????????????# #?##/##+##### | | ?????????????????????????????????## #?# #??# | | ??????????????????????????????????# ### #??# | | ??????????????????????????????????#" " = #??# | | ??????????????????????????????????#%" # #??# | | ??????????????????????????????????# # #### | | ????????????????????????????????/ + # | | ?????????????????????????????? ### ########### | | ???????????????????????????? ????# ??????????# | | ??????????????????????????? ??????? ??????????# | | ??????????????????????????????????????????????# | | ??????????????????????????????????????????????# | | ??????????????????????????????????????????????# | | ??????????????????????????????????????????????# | | ??????????????????????????????????????????????# | | ??????????????????????????????????????????????#### | | ????????????????????????????????????????????????# | | ????????????????????????????????????????######### | +----------------------------------------------------+ Best States ------------- Heat Dissipation 65 Energy Generation 37 Energy Capacity 880 Matter Stores 300 Matter Capacity 300 Sight Range 16 Terrain Scan Density 10 EM Shielding 2 Corruption Containment 8 Armor Coverage 1800 Resistance: TH 15 Evasion (%) 62 Targeting Accuracy 8 Recoil Reduction 4 Offensive Hacking 20 Defensive Hacking 10 Relay Coupler Types 7 Relay Coupler Value 148 Authchip Count 4 Item Schematics ----------------- Huge Storage Unit | -8/Materials | Hacked Com. Tesla Bomb Launcher | -3/Testing | Archive Gravity Flail | -3/Testing | Archive Adv. Plasma Rifle | -3/Testing | Archive Imp. Thermal Defense Suite | -3/Testing | Archive Imp. Diametric Drive | -3/Testing | Archive Enh. Multireflex Exoskeleton | -3/Testing | Archive Exp. Thermal Shield | -3/Testing | Archive Robot Schematics ------------------ G-34 Mercenary | -10/Materials | Hacked G-47 Trooper | -8/Materials | Hacked M-28 Smith | -8/Materials | Hacked P-60 Hacker | -7/Factory | Hacked E-15 Imp | -3/Testing | Archive B-74 Champion | -3/Testing | Archive A-15 Conveyor | -3/Testing | Archive Fabricated ------------ P-60 Hacker | x2 | -7/Factory | Authchip P-60 Hacker | x2 | -6/Factory P-60 Hacker | x2 | -5/Factory | Authchip P-60 Hacker | x2 | -5/Factory | Authchip M-28 Smith | x1 | -5/Factory | Authchip Repaired ---------- EM Pulse Gun | 17% | -10/Materials Imp. Assault Rifle | 58% | -9/Materials Imp. Assault Rifle | 59% | -9/Materials Dynamic Insulation System | 33% | -8/Materials | Corrupted Studied --------- Grenade Launcher | -9/Materials | Hacked Assault Rifle | -8/Materials | Hacked Gauss Rifle | -8/Materials | Hacked Mni. Grenade Launcher | -8/Materials | Hacked Alien Tech Used ----------------- None Achievements -------------- 40k Club Beloved Bending The Rules Challenges ------------ None Game ------ Seed EtherialStasisSaw Manual? 0 Play Time 04:15:24 Cumulative 296.1 hours Start 2026.09.19 @ 17:29:11 End 2026.09.19 @ 23:51:25 Sessions 5 Manual Loads 0 Difficulty Rogue Special Mode None Game No. 314 Rogue 314 Adventurer 0 Explorer 0 Win Type - Total 3 Types 3/0/0/0/0/0/0/0/0/0 Lore% 33 Gallery% 58 Achievement% 42 Wizard Run 0 Options --------- Layout 1 ASCII 0 Keyboard 0 Movement Numpad Keybinds 0 Fullscreen 2 Font 24/Smallcaps Map View 50x35 Zoom Use 0% Tactical HUD 1 Map Filters NONE Filters NONE Steam 1 RUN: ba8b5de9-3552-4862-a78c-d57bd2d80d63